[Event "Chile Championship Women 2022"]
[Site "Las Condes"]
[Date "2022.02.21"]
[Round "5.3"]
[White "Gomez Barrera, Javiera Belen"]
[Black "Toro Pradenas, Maria Jose"]
[Result "1-0"]
[ECO "C54"]
[WhiteElo "2199"]
[BlackElo "1979"]
[Annotator "ChessBase"]
[PlyCount "85"]
[EventDate "2022.02.18"]
[EventType "tourn"]
[EventCountry "CHI"]
[SourceTitle "playchess.com"]
[Source "ChessBase"]
[SourceQuality "1"]
[TimeControl "5400+30"]

1. e4 {[%emt 1:31:00]} e5 {[%emt 0:10:39]} 2. Nf3 {[%emt 0:00:00]} Nc6 {[%emt 0:00:07]} 3. Bc4 {[%emt 0:00:00]} Bc5 {[%emt 0:00:22]} 4. d3 {[%emt 0:00:00]} Nf6 {[%emt 0:00:53]} 5. O-O {[%emt 0:00:00]} d6 {[%emt 0:00:57]} 6. c3 {[%emt 0:00:00]} O-O {[%emt 0:01:56]} 7. h3 {[%emt 0:00:00]} h6 {[%emt 0:01:01]} 8. Re1 {[%emt 0:00:00]} a6 {[%emt 0:03:04]} 9. a4 {[%emt 0:00:00]} Re8 {[%emt 0:07:02]} 10. a5 {[%emt 0:00:00]} b5 {[%emt 0:08:39]} 11. axb6 {[%emt 0:00:00]} Bxb6 {[%emt 0:00:11]} 12. Nbd2 {[%emt 0:00:00]} Na5 {[%emt 0:19:39]} 13. Ba2 {[%emt 0:00:00]} Be6 {[%emt 0:02:50]} 14. b4 {[%emt 0:00:00]} Nb7 {[%emt 0:08:19]} 15. Bxe6 {[%emt 0:00:00]} Rxe6 {[%emt 0:04:21]} 16. Nc4 {[%emt 0:00:00]} a5 {[%emt 0:17:04]} 17. Qb3 {[%emt 0:00:00]} axb4 {[%emt 0:07:48]} 18. Rxa8 {[%emt 0:00:00]} Qxa8 {[%emt 0:00:03]} 19. Nxb6 {[%emt 0:00:00]} cxb6 {[%emt 0:00:07]} 20. cxb4 {[%emt 0:00:00]} Nd8 {[%emt 0:02:59]} 21. Be3 {[%emt 0:00:00]} d5 {[%emt 0:00:28]} 22. exd5 {[%emt 0:00:00]} Qxd5 {[%emt 0:00:05]} 23. Qc3 {[%emt 0:00:07]} Rc6 {[%emt 0:02:04]} 24. Qxe5 {[%emt 0:01:20]} Qxd3 {[%emt 0:00:05]} 25. Nd4 {[%emt 0:03:42]} Rc8 {[%emt 0:01:21]} 26. Bxh6 {[%emt 0:02:14]} Nc6 {[%emt 0:00:42]} 27. Nxc6 {[%emt 0:01:34]} Rxc6 {[%emt 0:00:04]} 28. Bg5 {[%emt 0:02:28]} Qd6 {[%emt 0:01:02]} 29. Qf5 {[%emt 0:00:22]} g6 {[%emt 0:00:33]} 30. Qf3 {[%emt 0:00:44]} Kg7 {[%emt 0:00:17]} 31. Rd1 {[%emt 0:00:51]} Qe6 {[%emt 0:01:18]} 32. Rd8 {[%emt 0:01:33]} Qe1+ {[%emt 0:00:00]} 33. Kh2 {[%emt 0:00:01]} Qe5+ {[%emt 0:00:00]} 34. Bf4 {[%emt 0:00:37]} Qe6 {[%emt 0:00:23]} 35. b5 {[%emt 0:00:48]} Rc5 {[%emt 0:00:42]} 36. Rd6 {[%emt 0:00:24]} Qf5 {[%emt 0:00:50]} 37. g4 {[%emt 0:00:36]} Qe4 {[%emt 0:00:28]} 38. Qxe4 {[%emt 0:00:36]} Nxe4 {[%emt 0:00:00]} 39. Rxb6 {[%emt 0:00:10]} Nxf2 {[%emt 0:00:59]} 40. Rb8 {[%emt 0:00:49]} Nd3 {[%emt 0:00:15]} 41. Be3 {[%emt 0:00:30]} Rc2+ {[%emt 0:00:49]} 42. Kg3 {[%emt 0:00:04]} f6 {[%emt 0:00:32]} 43. b6 {[%emt 0:00:53]} 1-0

[Event "Chile Championship Women 2022"]
[Site "Las Condes"]
[Date "2022.02.21"]
[Round "5.4"]
[White "Reyes Jara, Paula"]
[Black "Vildosola Canales, Melany Selena"]
[Result "1-0"]
[ECO "B33"]
[WhiteElo "1880"]
[BlackElo "1645"]
[Annotator "NA"]
[PlyCount "83"]
[EventDate "2022.02.18"]
[EventType "tourn"]
[EventCountry "CHI"]
[SourceTitle "playchess.com"]
[Source "ChessBase"]
[SourceQuality "1"]
[TimeControl "5400+30"]

1. e4 {[%emt 0:00:20]} c5 {[%emt 0:00:25]} 2. Nf3 {[%emt 0:00:55]} Nc6 {[%emt 0:00:07]} 3. d4 {[%emt 0:00:07]} cxd4 {[%emt 0:00:05]} 4. Nxd4 {[%emt 0:00:05]} Nf6 {[%emt 0:00:05]} 5. Nc3 {[%emt 0:00:08]} e5 {[%emt 0:00:06]} 6. Ndb5 {[%emt 0:00:22]} d6 {[%emt 0:00:07]} 7. Bg5 {[%emt 0:00:41]} a6 {[%emt 0:00:30]} 8. Na3 {[%emt 0:03:23]} b5 {[%emt 0:00:08]} 9. Bxf6 {[%emt 0:00:07]} gxf6 {[%emt 0:00:05]} 10. Nd5 {[%emt 0:00:04]} Bg7 {[%emt 0:00:05]} 11. c3 {[%emt 0:01:24]} Ne7 {[%emt 0:00:13]} 12. Nc2 {[%emt 0:02:04]} f5 {[%emt 0:06:11]} 13. Nxe7 {[%emt 0:00:33]} Qxe7 {[%emt 0:00:51]} 14. exf5 {[%emt 0:00:20]} O-O {[%emt 0:11:32]} 15. Ne3 {[%emt 0:00:26]} Bb7 {[%emt 0:02:56]} 16. Qg4 {[%emt 0:02:10]} d5 {[%emt 0:04:26]} 17. Be2 {[%emt 0:06:57]} Rfe8 {[%emt 0:10:21]} 18. O-O {[%emt 0:00:54]} Kh8 {[%emt 0:05:42]} 19. Qh5 {[%emt 0:02:19]} Rg8 {[%emt 0:13:04]} 20. Bd3 {[%emt 0:04:29]} e4 {[%emt 0:06:26]} 21. Bc2 {[%emt 0:00:05]} Rad8 {[%emt 0:03:50]} 22. Bb3 {[%emt 0:04:34]} Bf8 {[%emt 0:11:38]} 23. Rad1 {[%emt 0:00:56]} Rg5 {[%emt 0:03:45]} 24. Qh3 {[%emt 0:02:28]} Qe5 {[%emt 0:05:51]} 25. g3 {[%emt 0:05:19]} Bg7 {[%emt 0:05:38]} 26. Rfe1 {[%emt 0:02:55]} a5 {[%emt 0:06:06]} 27. Qf1 {[%emt 0:08:02]} Bc6 {[%emt 0:01:51]} 28. Qe2 {[%emt 0:02:30]} Bf6 {[%emt 0:00:42]} 29. Rd2 {[%emt 0:01:59]} d4 {[%emt 0:00:57]} 30. cxd4 {[%emt 0:00:12]} Rxd4 {[%emt 0:00:20]} 31. Bxf7 {[%emt 0:00:38]} Rxd2 {[%emt 0:00:26]} 32. Qxd2 {[%emt 0:00:46]} Rg7 {[%emt 0:01:05]} 33. Be6 {[%emt 0:01:18]} h5 {[%emt 0:00:45]} 34. Qe2 {[%emt 0:02:32]} Rh7 {[%emt 0:00:25]} 35. Rc1 {[%emt 0:00:15]} Bb7 {[%emt 0:00:26]} 36. b3 {[%emt 0:00:27]} Qb2 {[%emt 0:00:32]} 37. Qxb2 {[%emt 0:01:02]} Bxb2 {[%emt 0:00:01]} 38. Rc5 {[%emt 0:00:11]} b4 {[%emt 0:01:05]} 39. Nc4 {[%emt 0:00:45]} Bd4 {[%emt 0:00:35]} 40. Rxa5 {[%emt 0:00:09]} Bc3 {[%emt 0:00:27]} 41. Nd6 {[%emt 0:05:57]} h4 {[%emt 0:00:37]} 42. Nxb7 {[%emt 0:02:22]} 1-0

[Event "Chile Championship Women 2022"]
[Site "Las Condes"]
[Date "2022.02.22"]
[Round "6.4"]
[White "Rozas Lazcano, Valeska"]
[Black "Luna Benalcazar, Gianella"]
[Result "1/2-1/2"]
[ECO "B28"]
[WhiteElo "1456"]
[BlackElo "1736"]
[Annotator "NA RC"]
[PlyCount "84"]
[EventDate "2022.02.18"]
[EventType "tourn"]
[EventCountry "CHI"]
[SourceTitle "playchess.com"]
[Source "ChessBase"]
[SourceQuality "1"]
[TimeControl "5400+30"]

1. e4 {[%emt 0:00:03]} c5 {[%emt 0:08:43]} 2. Nc3 {[%emt 0:00:08]} a6 {[%emt 0:00:09]} 3. Nf3 {[%emt 0:00:19]} b5 {[%emt 0:00:12]} 4. d4 {[%emt 0:00:18]} cxd4 {[%emt 0:00:07]} 5. Nxd4 {[%emt 0:00:06]} Bb7 {[%emt 0:00:28]} 6. a3 {[%emt 0:00:15]} g6 {[%emt 0:00:23]} 7. g3 {[%emt 0:00:18]} Bg7 {[%emt 0:00:18]} 8. Bg2 {[%emt 0:00:22]} Nh6 {[%emt 0:00:21]} 9. O-O {[%emt 0:00:38]} O-O {[%emt 0:00:09]} 10. Be3 {[%emt 0:01:48]} d6 {[%emt 0:00:30]} 11. f4 {[%emt 0:03:41]} e5 {[%emt 0:05:40]} 12. Nb3 {[%emt 0:06:38]} f5 {[%emt 0:06:54]} 13. fxe5 {[%emt 0:08:39]} Ng4 {[%emt 0:03:26]} 14. Bc1 {[%emt 0:05:57]} Bxe5 {[%emt 0:09:06]} 15. Ne2 {[%emt 0:11:44]} fxe4 {[%emt 0:06:48]} 16. Rxf8+ {[%emt 0:01:30]} Kxf8 {[%emt 0:03:07]} 17. Ned4 {[%emt 0:04:54]} Qd7 {[%emt 0:10:05]} 18. Na5 {[%emt 0:07:26]} Nf6 {[%emt 0:04:03]} 19. Bh6+ {[%emt 0:07:35]} Kg8 {[%emt 0:02:29]} 20. Nxb7 {[%emt 0:02:06]} Qxb7 {[%emt 0:00:19]} 21. c3 {[%emt 0:02:33]} d5 {[%emt 0:03:30]} 22. Bh3 {[%emt 0:02:10]} Bxd4+ {[%emt 0:06:54]} 23. Qxd4 {[%emt 0:00:57]} Qa7 {[%emt 0:01:18]} 24. Qxa7 {[%emt 0:04:34]} Rxa7 {[%emt 0:00:00]} 25. Be6+ {[%emt 0:00:09]} Kh8 {[%emt 0:00:37]} 26. Bg5 {[%emt 0:09:58]} Kg7 {[%emt 0:08:45]} 27. Bxf6+ {[%emt 0:00:32]} Kxf6 {[%emt 0:00:02]} 28. Bxd5 {[%emt 0:00:07]} Ke5 {[%emt 0:03:29]} 29. Bb3 {[%emt 0:04:15]} Nd7 {[%emt 0:17:08]} 30. Rd1 {[%emt 0:00:54]} Nf6 {[%emt 0:00:00]} 31. h3 {[%emt 0:00:06]} h5 {[%emt 0:00:00]} 32. Kf2 {[%emt 0:00:55]} a5 {[%emt 0:00:00]} 33. Bc2 {[%emt 0:03:27]} Rc7 {[%emt 0:00:00]} 34. Rd4 {[%emt 0:04:17]} Rc4 {[%emt 0:00:00]} 35. Rxc4 {[%emt 0:04:06]} bxc4 {[%emt 0:00:00]} 36. Bb1 {[%emt 0:00:07]} g5 {[%emt 0:00:11]} 37. Ba2 {[%emt 0:02:02]} Kd5 {[%emt 0:01:23]} 38. Ke3 {[%emt 0:00:17]} Ne8 {[%emt 0:01:38]} 39. Bb1 {[%emt 0:01:59]} Nd6 {[%emt 0:00:10]} 40. g4 {[%emt 0:00:05]} h4 {[%emt 0:00:43]} 41. Bc2 {[%emt 0:00:03]} Ke5 {[%emt 0:00:55]} 42. Bd1 {[%emt 0:01:08]} Kd5 {[%emt 0:01:30]} 1/2-1/2

[Event "Chile Championship Women 2022"]
[Site "Las Condes"]
[Date "2022.02.22"]
[Round "6.5"]
[White "Sanchez Tobar, Francisca Valentina"]
[Black "Fuentes Inzunza, Lesly"]
[Result "1-0"]
[ECO "B01"]
[WhiteElo "1837"]
[BlackElo "1816"]
[Annotator "NA RC"]
[PlyCount "85"]
[EventDate "2022.02.18"]
[EventType "tourn"]
[EventCountry "CHI"]
[SourceTitle "playchess.com"]
[Source "ChessBase"]
[SourceQuality "1"]
[TimeControl "5400+30"]

1. e4 {[%emt 0:02:37]} d5 {[%emt 0:00:06]} 2. exd5 {[%emt 0:00:13]} Qxd5 {[%emt 0:00:09]} 3. Nc3 {[%emt 0:00:14]} Qd8 {[%emt 0:00:11]} 4. d4 {[%emt 0:00:33]} Nf6 {[%emt 0:00:12]} 5. Bc4 {[%emt 0:01:29]} g6 {[%emt 0:00:29]} 6. Nf3 {[%emt 0:00:21]} Bg7 {[%emt 0:00:26]} 7. h3 {[%emt 0:01:51]} O-O {[%emt 0:00:19]} 8. Be3 {[%emt 0:01:20]} Nc6 {[%emt 0:02:36]} 9. a4 {[%emt 0:03:20]} e6 {[%emt 0:07:13]} 10. O-O {[%emt 0:03:35]} b6 {[%emt 0:02:11]} 11. Qe2 {[%emt 0:13:10]} Bb7 {[%emt 0:04:45]} 12. Rfd1 {[%emt 0:05:48]} Ne7 {[%emt 0:02:03]} 13. Ba6 {[%emt 0:09:24]} Qc8 {[%emt 0:17:49]} 14. Bxb7 {[%emt 0:02:39]} Qxb7 {[%emt 0:00:08]} 15. Bg5 {[%emt 0:01:44]} h6 {[%emt 0:08:14]} 16. Bf4 {[%emt 0:08:00]} Ned5 {[%emt 0:06:24]} 17. Nxd5 {[%emt 0:02:11]} Nxd5 {[%emt 0:03:42]} 18. Be5 {[%emt 0:03:11]} c6 {[%emt 0:06:03]} 19. Bxg7 {[%emt 0:07:55]} Kxg7 {[%emt 0:00:16]} 20. Qe5+ {[%emt 0:00:13]} (20. c4 $5 {[%cal Rc4d5]} Nf6 21. b3 $14 (21. Qe5 Rfd8 $14)) 20... Nf6 {[%emt 0:06:41]} 21. Nd2 {[%emt 0:04:35]} Qb8 {[%emt 0:11:11]} 22. Ra3 {[%emt 0:04:19]} Rd8 {[%emt 0:01:40]} 23. Rd3 {[%emt 0:02:10]} Rd5 {[%emt 0:01:43]} 24. Qe3 {[%emt 0:03:58]} Nh5 {[%emt 0:11:26]} (24... b5 $11) 25. g3 {[%emt 0:04:15]} Nf6 {[%emt 0:01:18]} 26. Nf3 {[%emt 0:00:53]} b5 {[%emt 0:00:30]} 27. axb5 {[%emt 0:01:15]} cxb5 {[%emt 0:00:16]} 28. Ne5 {[%emt 0:00:42]} a5 $14 {[%emt 0:01:04]} (28... Qd6 $11 {is more appropriate.}) 29. Re1 {[%emt 0:01:44]} b4 {[%emt 0:00:26]} 30. Nxf7 {[%emt 0:00:30]} Qc7 {[%emt 0:01:41]} 31. Nxh6 {[%emt 0:03:10]} Rh8 {[%emt 0:01:14]} 32. Ng4 {[%emt 0:00:11]} Rxh3 {[%emt 0:00:50]} 33. Nxf6 {[%emt 0:00:26]} Rd8 {[%emt 0:03:03]} 34. Qe5 {[%emt 0:02:18]} Qxe5 {[%emt 0:00:38]} 35. dxe5 {[%emt 0:00:03]} Rdh8 {[%emt 0:00:29]} 36. Rd7+ {[%emt 0:00:15]} Kh6 {[%emt 0:00:30]} 37. Kg2 {[%emt 0:01:04]} Kg5 {[%emt 0:00:12]} 38. Re4 {[%emt 0:01:05]} Rh2+ {[%emt 0:00:20]} 39. Kf3 {[%emt 0:00:18]} R8h3 {[%emt 0:00:51]} 40. Rf4 {[%emt 0:00:45]} Rh8 {[%emt 0:00:39]} 41. Ne4+ {[%emt 0:00:24]} Kh5 {[%emt 0:00:22]} 42. g4+ {[%emt 0:00:50]} Kh6 {[%emt 0:00:15]} 43. g5+ {[%emt 0:00:19]} 1-0

[Event "Chile Championship Women 2022"]
[Site "Las Condes"]
[Date "2022.02.23"]
[Round "7.1"]
[White "Luna Benalcazar, Gianella"]
[Black "Sanchez Tobar, Francisca Valentina"]
[Result "0-1"]
[ECO "A42"]
[WhiteElo "1736"]
[BlackElo "1837"]
[Annotator "NA RC"]
[PlyCount "84"]
[EventDate "2022.02.18"]
[EventType "tourn"]
[EventCountry "CHI"]
[SourceTitle "playchess.com"]
[Source "ChessBase"]
[SourceQuality "1"]
[TimeControl "5400+30"]

1. d4 {[%emt 0:05:10]} Nf6 {[%emt 0:02:49]} 2. c4 {[%emt 0:01:52]} d6 {[%emt 0:01:28]} 3. Nc3 {[%emt 0:00:06]} e5 {[%emt 0:01:21]} 4. d5 {[%emt 0:00:57]} g6 {[%emt 0:01:13]} 5. e4 {[%emt 0:00:15]} Bg7 {[%emt 0:00:27]} 6. h3 {[%emt 0:00:18]} Nbd7 {[%emt 0:01:43]} 7. Be3 {[%emt 0:00:35]} Nc5 {[%emt 0:01:21]} 8. Qc2 {[%emt 0:00:08]} a5 {[%emt 0:00:48]} 9. Be2 {[%emt 0:00:07]} O-O {[%emt 0:00:43]} 10. g4 {[%emt 0:00:07]} Rb8 {[%emt 0:05:24]} 11. b3 {[%emt 0:01:12]} Ne8 {[%emt 0:09:57]} 12. g5 {[%emt 0:00:07]} f5 {[%emt 0:22:45]} 13. gxf6 {[%emt 0:00:30]} Bxf6 {[%emt 0:04:34]} 14. Nf3 {[%emt 0:01:56]} Ng7 {[%emt 0:00:56]} 15. Bh6 {[%emt 0:04:38]} Rf7 {[%emt 0:10:33]} 16. Bxg7 {[%emt 0:00:30]} Bxg7 {[%emt 0:00:29]} 17. Rb1 {[%emt 0:06:42]} Qf8 {[%emt 0:05:09]} 18. Qd1 {[%emt 0:03:42]} Rf4 {[%emt 0:00:55]} 19. Nd2 {[%emt 0:22:18]} Rxf2 {[%emt 0:05:27]} 20. Nf3 {[%emt 0:05:24]} Rg2 {[%emt 0:06:19]} 21. Bf1 {[%emt 0:09:55]} Rg3 {[%emt 0:00:20]} 22. Kf2 {[%emt 0:00:36]} Rg5 {[%emt 0:00:51]} 23. Qd2 {[%emt 0:05:15]} Rh5 {[%emt 0:00:16]} 24. a3 {[%emt 0:08:10]} Bh6 {[%emt 0:01:58]} 25. Qe2 {[%emt 0:00:41]} Rh4 {[%emt 0:00:59]} 26. b4 {[%emt 0:00:48]} axb4 {[%emt 0:00:43]} 27. axb4 {[%emt 0:00:01]} Na6 {[%emt 0:01:11]} 28. Kg2 {[%emt 0:02:05]} Rf4 {[%emt 0:00:20]} 29. Qd3 {[%emt 0:01:42]} Bd7 {[%emt 0:00:48]} 30. Be2 {[%emt 0:02:07]} Qe7 {[%emt 0:01:12]} 31. Nd1 {[%emt 0:01:00]} Rxe4 {[%emt 0:01:10]} 32. Nf2 {[%emt 0:10:51]} Rf4 {[%emt 0:00:33]} 33. Qc3 {[%emt 0:01:01]} e4 {[%emt 0:01:59]} 34. Nh2 {[%emt 0:00:31]} Rbf8 {[%emt 0:01:07]} 35. Nhg4 {[%emt 0:00:49]} Bg7 {[%emt 0:00:13]} 36. Qg3 {[%emt 0:02:50]} h5 {[%emt 0:02:04]} 37. Nh6+ {[%emt 0:02:04]} Bxh6 {[%emt 0:00:40]} 38. Qxg6+ {[%emt 0:00:02]} Qg7 {[%emt 0:00:07]} 39. Qxg7+ {[%emt 0:00:43]} Bxg7 {[%emt 0:01:22]} 40. Nd1 {[%emt 0:00:06]} R4f5 {[%emt 0:01:29]} 41. Bf1 {[%emt 0:00:35]} Be5 {[%emt 0:00:12]} 42. Rg1 {[%emt 0:00:29]} Rxf1 {[%emt 0:01:45]} 0-1

[Event "Chile Championship Women 2022"]
[Site "Las Condes"]
[Date "2022.02.23"]
[Round "7.3"]
[White "Reyes Jara, Paula"]
[Black "Araos Diaz, Constanza Paz"]
[Result "1-0"]
[ECO "B01"]
[WhiteElo "1880"]
[BlackElo "1435"]
[Annotator "NA RC"]
[PlyCount "119"]
[EventDate "2022.02.18"]
[EventType "tourn"]
[EventCountry "CHI"]
[SourceTitle "playchess.com"]
[Source "ChessBase"]
[SourceQuality "1"]
[TimeControl "5400+30"]

1. e4 {[%emt 0:04:15]} d5 {[%emt 0:00:01]} 2. exd5 {[%emt 0:00:47]} Qxd5 {[%emt 0:00:03]} 3. Nc3 {[%emt 0:00:14]} Qd6 {[%emt 0:00:05]} 4. d4 {[%emt 0:00:08]} Nf6 {[%emt 0:00:05]} 5. Nf3 {[%emt 0:00:06]} Bg4 {[%emt 0:00:08]} 6. h3 {[%emt 0:00:15]} Bxf3 {[%emt 0:00:09]} 7. Qxf3 {[%emt 0:00:08]} c6 {[%emt 0:00:06]} 8. Bf4 {[%emt 0:01:02]} Qd8 {[%emt 0:00:23]} 9. O-O-O {[%emt 0:04:24]} e6 {[%emt 0:00:08]} 10. Bc4 {[%emt 0:02:46]} Nd5 {[%emt 0:01:12]} 11. Bd2 {[%emt 0:03:40]} Nxc3 {[%emt 0:00:37]} 12. Bxc3 {[%emt 0:00:32]} Qg5+ {[%emt 0:16:23]} 13. Kb1 {[%emt 0:00:15]} Be7 {[%emt 0:05:13]} 14. Rhe1 {[%emt 0:03:01]} O-O {[%emt 0:01:21]} 15. Re4 {[%emt 0:00:43]} g6 {[%emt 0:08:12]} 16. h4 {[%emt 0:12:53]} Qh6 {[%emt 0:03:57]} 17. Bd2 {[%emt 0:00:57]} Qg7 {[%emt 0:01:36]} 18. h5 {[%emt 0:00:08]} Nd7 {[%emt 0:09:39]} 19. hxg6 {[%emt 0:03:04]} fxg6 {[%emt 0:00:54]} 20. Bxe6+ {[%emt 0:00:35]} Kh8 {[%emt 0:00:13]} 21. Qh3 {[%emt 0:00:34]} Nf6 {[%emt 0:05:26]} 22. Ree1 {[%emt 0:06:46]} Nh5 {[%emt 0:02:02]} 23. Bc3 {[%emt 0:07:58]} Nf4 {[%emt 0:05:26]} 24. Qg3 {[%emt 0:03:32]} Nxe6 {[%emt 0:02:40]} 25. Rxe6 {[%emt 0:00:27]} Bf6 {[%emt 0:00:59]} 26. Rxf6 {[%emt 0:02:10]} Rxf6 {[%emt 0:00:02]} 27. d5 {[%emt 0:00:08]} Kg8 {[%emt 0:02:55]} 28. dxc6 {[%emt 0:00:31]} bxc6 {[%emt 0:01:24]} 29. Bxf6 {[%emt 0:03:28]} Qxf6 {[%emt 0:00:09]} 30. Qb3+ {[%emt 0:00:07]} Qf7 {[%emt 0:04:25]} 31. Qxf7+ {[%emt 0:01:18]} Kxf7 {[%emt 0:00:01]} 32. Rd7+ {[%emt 0:00:02]} Kg8 {[%emt 0:00:01]} 33. Kc1 {[%emt 0:00:31]} Rf8 {[%emt 0:00:40]} 34. f3 {[%emt 0:00:07]} Rf7 {[%emt 0:00:19]} 35. Rd6 {[%emt 0:00:14]} Rc7 {[%emt 0:00:03]} 36. Kd2 {[%emt 0:00:45]} Kf7 {[%emt 0:03:17]} 37. c4 {[%emt 0:01:48]} c5 {[%emt 0:00:54]} 38. Rd5 {[%emt 0:01:01]} Ke6 {[%emt 0:00:46]} 39. Kc3 {[%emt 0:00:10]} Rc6 {[%emt 0:02:52]} 40. Rd8 {[%emt 0:00:10]} Ra6 {[%emt 0:02:47]} 41. a3 {[%emt 0:00:08]} h5 {[%emt 0:00:46]} 42. Rd5 {[%emt 0:00:48]} Ra5 {[%emt 0:01:47]} 43. Kd3 {[%emt 0:00:14]} Kf6 {[%emt 0:00:54]} 44. Ke4 {[%emt 0:00:13]} g5 {[%emt 0:02:12]} 45. Rd6+ {[%emt 0:00:12]} Kg7 {[%emt 0:00:50]} 46. Kd5 {[%emt 0:00:19]} g4 {[%emt 0:00:58]} 47. fxg4 {[%emt 0:00:09]} hxg4 {[%emt 0:00:02]} 48. Rc6 {[%emt 0:00:09]} Kf7 {[%emt 0:00:42]} 49. Rxc5 {[%emt 0:00:17]} Ra6 {[%emt 0:00:19]} 50. Rc6 {[%emt 0:01:52]} Ra5+ {[%emt 0:00:22]} 51. c5 {[%emt 0:00:07]} Rb5 {[%emt 0:00:13]} 52. b4 {[%emt 0:00:12]} a5 {[%emt 0:00:17]} 53. Rb6 {[%emt 0:00:28]} Rxb6 {[%emt 0:00:35]} 54. cxb6 {[%emt 0:00:02]} axb4 {[%emt 0:00:12]} 55. axb4 {[%emt 0:00:08]} Kf6 {[%emt 0:00:14]} 56. b7 {[%emt 0:00:05]} Kf5 {[%emt 0:00:08]} 57. b8=Q {[%emt 0:00:09]} Kg5 {[%emt 0:00:14]} 58. Ke5 {[%emt 0:00:18]} g3 {[%emt 0:00:08]} 59. Qg8+ {[%emt 0:00:12]} Kh4 {[%emt 0:00:13]} 60. Kf5 {[%emt 0:00:15]} 1-0

[Event "Chile Championship Women 2022"]
[Site "Las Condes"]
[Date "2022.02.23"]
[Round "7.5"]
[White "Lemus Pena, Macarena"]
[Black "Vildosola Canales, Melany Selena"]
[Result "1-0"]
[ECO "A15"]
[WhiteElo "1703"]
[BlackElo "1645"]
[Annotator "NA RC"]
[PlyCount "57"]
[EventDate "2022.02.18"]
[EventType "tourn"]
[EventCountry "CHI"]
[SourceTitle "playchess.com"]
[Source "ChessBase"]
[SourceQuality "1"]
[TimeControl "5400+30"]

1. Nf3 {[%emt 0:09:42]} Nf6 {[%emt 0:05:18]} 2. c4 {[%emt 0:01:26]} g6 {[%emt 0:00:38]} 3. b4 {[%emt 0:00:24]} Bg7 {[%emt 0:00:16]} 4. Bb2 {[%emt 0:00:09]} O-O {[%emt 0:00:12]} 5. g3 {[%emt 0:00:26]} d5 {[%emt 0:00:09]} 6. cxd5 {[%emt 0:00:20]} Nxd5 {[%emt 0:00:14]} 7. Bxg7 {[%emt 0:00:25]} Kxg7 {[%emt 0:00:08]} 8. Qb3 {[%emt 0:00:11]} Be6 {[%emt 0:03:42]} 9. Ng5 {[%emt 0:07:53]} Bc8 {[%emt 0:07:44]} 10. Nc3 {[%emt 0:02:23]} Nf6 {[%emt 0:04:09]} 11. Bg2 {[%emt 0:02:04]} h6 {[%emt 0:04:26]} 12. Nf3 {[%emt 0:00:37]} Nbd7 {[%emt 0:01:38]} 13. O-O {[%emt 0:09:39]} Nb6 {[%emt 0:02:44]} 14. d3 {[%emt 0:00:42]} Be6 {[%emt 0:05:00]} 15. Qb2 {[%emt 0:00:08]} Rc8 {[%emt 0:02:54]} 16. b5 {[%emt 0:01:46]} Qd6 {[%emt 0:01:56]} 17. Ne4 {[%emt 0:04:36]} Qd8 {[%emt 0:07:25]} 18. Nc5 {[%emt 0:07:23]} Rb8 {[%emt 0:11:44]} 19. Nxe6+ {[%emt 0:01:05]} fxe6 {[%emt 0:00:02]} 20. a4 {[%emt 0:01:16]} Qd6 {[%emt 0:00:54]} 21. Ne5 {[%emt 0:09:38]} Kh7 {[%emt 0:02:35]} 22. d4 {[%emt 0:05:25]} Nbd5 {[%emt 0:09:58]} 23. Rfd1 {[%emt 0:11:50]} a5 {[%emt 0:06:34]} 24. Qc2 {[%emt 0:04:41]} Rg8 {[%emt 0:01:41]} 25. e4 {[%emt 0:00:55]} Nb4 {[%emt 0:02:01]} 26. Qd2 {[%emt 0:00:16]} Rg7 {[%emt 0:02:40]} 27. Nc4 {[%emt 0:01:45]} Qd8 {[%emt 0:04:57]} 28. Nxa5 {[%emt 0:00:14]} c5 {[%emt 0:00:15]} 29. Nb3 {[%emt 0:03:56]} 1-0

[Event "Chile Championship Women 2022"]
[Site "Las Condes"]
[Date "2022.02.24"]
[Round "8.1"]
[White "Toro Pradenas, Maria Jose"]
[Black "Lemus Pena, Macarena"]
[Result "0-1"]
[ECO "C11"]
[WhiteElo "1979"]
[BlackElo "1703"]
[Annotator "RC"]
[PlyCount "114"]
[EventDate "2022.02.18"]
[EventType "tourn"]
[EventCountry "CHI"]
[SourceTitle "playchess.com"]
[Source "ChessBase"]
[SourceQuality "1"]
[TimeControl "5400+30"]

1. e4 {[%emt 0:00:14]} e6 {[%emt 0:12:05]} 2. d4 {[%emt 0:00:09]} d5 {[%emt 0:00:43]} 3. Nc3 {[%emt 0:00:12]} Nf6 {[%emt 0:00:08]} 4. e5 {[%emt 0:00:14]} Nfd7 {[%emt 0:00:08]} 5. f4 {[%emt 0:00:12]} c5 {[%emt 0:00:09]} 6. Nf3 {[%emt 0:00:09]} Nc6 {[%emt 0:00:24]} 7. Be3 {[%emt 0:00:26]} cxd4 {[%emt 0:00:54]} 8. Nxd4 {[%emt 0:00:10]} Bc5 {[%emt 0:00:08]} 9. Qd2 {[%emt 0:02:25]} O-O {[%emt 0:01:42]} 10. Na4 {[%emt 0:15:19]} Bxd4 {[%emt 0:03:58]} 11. Bxd4 {[%emt 0:00:25]} Nxd4 {[%emt 0:00:21]} 12. Qxd4 {[%emt 0:00:10]} Qc7 {[%emt 0:05:31]} 13. Bd3 {[%emt 0:04:57]} a6 {[%emt 0:02:23]} 14. b3 {[%emt 0:05:20]} b5 {[%emt 0:02:00]} 15. Nc3 {[%emt 0:02:59]} Nc5 {[%emt 0:01:49]} 16. O-O {[%emt 0:04:12]} Nxd3 {[%emt 0:09:52]} 17. cxd3 {[%emt 0:01:43]} Qa7 {[%emt 0:04:39]} 18. Ne2 {[%emt 0:01:00]} Bd7 {[%emt 0:01:39]} 19. Rac1 {[%emt 0:02:01]} b4 {[%emt 0:03:19]} 20. Qxa7 {[%emt 0:26:26]} Rxa7 {[%emt 0:03:41]} 21. Nd4 {[%emt 0:00:16]} a5 {[%emt 0:03:53]} 22. Rf2 {[%emt 0:00:46]} Rb8 {[%emt 0:11:38]} 23. Rfc2 {[%emt 0:01:51]} h6 {[%emt 0:03:33]} 24. Rc7 {[%emt 0:01:26]} Rbb7 {[%emt 0:01:43]} 25. Rxb7 {[%emt 0:01:15]} Rxb7 {[%emt 0:00:08]} 26. Kf2 {[%emt 0:12:57]} Kf8 {[%emt 0:04:04]} 27. Ke3 {[%emt 0:00:32]} Ke8 {[%emt 0:00:24]} 28. g4 {[%emt 0:04:27]} Kd8 {[%emt 0:04:17]} 29. h4 {[%emt 0:04:48]} f6 {[%emt 0:05:22]} 30. g5 {[%emt 0:02:49]} fxe5 {[%emt 0:02:52]} 31. fxe5 {[%emt 0:00:09]} hxg5 {[%emt 0:04:27]} 32. hxg5 {[%emt 0:00:06]} Ke7 {[%emt 0:00:39]} 33. Kf4 {[%emt 0:03:33]} a4 {[%emt 0:02:57]} 34. g6 {[%emt 0:00:40]} Be8 {[%emt 0:00:44]} 35. Kg5 {[%emt 0:00:25]} axb3 {[%emt 0:01:04]} 36. axb3 {[%emt 0:00:24]} Ra7 {[%emt 0:00:21]} 37. Rc8 {[%emt 0:01:35]} Ra1 {[%emt 0:02:57]} 38. Rc7+ {[%emt 0:00:18]} Bd7 {[%emt 0:00:06]} 39. Nc6+ {[%emt 0:00:51]} Ke8 {[%emt 0:00:06]} 40. Nb8 {[%emt 0:00:32]} Rg1+ {[%emt 0:01:07]} 41. Kf4 {[%emt 0:00:12]} Bb5 {[%emt 0:00:40]} 42. Rxg7 {[%emt 0:00:14]} Bxd3 {[%emt 0:00:29]} 43. Rg8+ {[%emt 0:02:02]} Ke7 {[%emt 0:02:56]} 44. Nc6+ {[%emt 0:00:29]} Kd7 {[%emt 0:00:00]} 45. Nxb4 {[%emt 0:00:48]} Rxg6 {[%emt 0:00:00]} 46. Rxg6 {[%emt 0:00:23]} Bxg6 {[%emt 0:00:00]} 47. Kg5 {[%emt 0:00:08]} Bf5 {[%emt 0:00:00]} 48. Kf6 {[%emt 0:00:03]} d4 {[%emt 0:00:00]} 49. Na2 {[%emt 0:00:38]} Bb1 {[%emt 0:00:01]} 50. Nc1 {[%emt 0:01:13]} d3 {[%emt 0:00:10]} 51. Nxd3 {[%emt 0:00:20]} Bxd3 {[%emt 0:00:07]} 52. Kg5 {[%emt 0:00:40]} Kc6 {[%emt 0:00:24]} 53. Kf4 {[%emt 0:00:23]} Kd5 {[%emt 0:00:07]} 54. Ke3 {[%emt 0:00:26]} Bb5 {[%emt 0:00:50]} 55. b4 {[%emt 0:00:40]} Kxe5 {[%emt 0:00:09]} 56. Kd2 {[%emt 0:00:05]} Ke4 {[%emt 0:00:19]} 57. Ke1 {[%emt 0:00:09]} Ke3 {[%emt 0:00:14]} 0-1